Cogmind - Beta 14 @@@ ROGUE MODE // 2024.09.05 @ 14:49:15 Player: Kaeinara Result: Destroyed by Y-64 Sentinel with Wave Gun Performance ------------- Evolutions (5) 2500 Regions Visited (11) 2200 Robots Destroyed (146) 730 Value Destroyed (5400) 5400 Prototype IDs (29) 580 Alien Tech Used (0) 0 Bonus (221) 221 TOTAL SCORE: 11631 Bonus ------- High Alert Combat Kills 76 Follower Combat Kills 156 Aligned with FarCom 300 Friendly Fire -311 Cogmind --------- Core Integrity 0/1000 Matter 203/300 Energy 187/300 System Corruption 20% Temperature Cool (9) Movement Walking (190) Ox1 Location -5/Factory Parts ------- > --- POWER (3) -------- Fusion Compressor > --- PROPULSION (4) --- Carbon-fiber Leg Combat Gravmag System > --- UTILITY (6) ------ Improved Heat Sink Large Battery Improved Melee Analysis Suite Improved Target Analyzer Improved Kinecellerator Improved Component Analysis Suite > --- WEAPON (4) ------- Tesla Rifle Heavy Pick > --- INVENTORY (5) ---- Improved Cooling System Improved Kinecellerator Improved Kinecellerator Advanced ECM Suite Peak State ------------ > --- POWER ------------ Improved Deuterium Engine Light Angular Momentum Engine > --- PROPULSION ------- Heavy Treads Heavy Treads > --- UTILITY ---------- Improved Cooling System Medium Storage Unit Core Analyzer Focal Shield Hacking Suite System Shield > --- WEAPON ----------- Phase Cannon Slug Cannon Slug Cannon Spear > --- INVENTORY -------- Improved Heat Sink Improved Cooling System Large Battery Improved Melee Analysis Suite Advanced ECM Suite Backup Laser III Magnetic Acceleration Cannon Heavy Rocket Launcher Impact Mace [Rating: 73] Favorites ----------- Power Improved Deuterium Engine Engine Improved Deuterium Engine Power Core Light Nuclear Core Propulsion Heavy Treads Treads Heavy Treads Leg Aluminum Leg Hover Unit Gravmag System Flight Unit Improved Flight Unit Utility Hacking Suite Device Improved Cooling System Storage Large Storage Unit Processor Advanced Targeting Computer Hackware Hacking Suite Protection Improved Light Armor Plating Weapon Improved Assault Rifle Energy Gun Beamcaster Energy Cannon Improved EM Pulse Cannon Ballistic Gun Improved Assault Rifle Ballistic Cannon Slug Cannon Launcher Rocket Launcher Impact Weapon Heavy Hammer Piercing Weapon Spear Special Melee Weapon Improved Datajack Build | -11 -10 -9 -9 -9 -8 -8 -7 -7 -7 -6 -5 ------- Run | Yrd Mat Mat Min Exi Min Mat Fac Was Fac Fac Fac Slots Evolved 10 | . . 2 . . . 2 2 . . 2 2 Power 2 | . . . . . . 1 . . . . 1 Propulsion 2 | . . 2 . . . . . . . . . Utility 4 | . . . . . . 1 1 . . 1 1 Weapon 2 | . . . . . . . 1 . . 1 . Parts Attached 138 | 6 8 17 . . 1 13 37 10 4 10 32 Power 31 | 1 1 1 . . . 5 8 3 1 5 6 Engine 13 | 1 1 1 . . . 2 3 . . 3 2 Core 18 | . . . . . . 3 5 3 1 2 4 Reactor . | . . . . . . . . . . . . Propulsion 37 | 2 2 11 . . . 5 10 2 . 2 3 Treads 12 | . . 2 . . . 3 3 2 . 2 . Leg 9 | 2 2 3 . . . . 1 . . . 1 Wheel . | . . . . . . . . . . . . Hover 4 | . . . . . . . 2 . . . 2 Flight 12 | . . 6 . . . 2 4 . . . . Utility 26 | 1 2 . . . . 2 4 3 3 1 10 Device 12 | . . . . . . 1 2 1 1 . 7 Storage 4 | 1 1 . . . . . . . 1 . 1 Processor 4 | . . . . . . 1 . 1 . . 2 Hackware 2 | . 1 . . . . . . . . 1 . Protection 4 | . . . . . . . 2 1 1 . . Artifact . | . . . . . . . . . . . . Weapon 44 | 2 3 5 . . 1 1 15 2 . 2 13 Energy Gun 14 | 1 . . . . . . 6 1 . . 6 Energy Cannon 7 | . . . . . . . 5 . . 1 1 Ballistic Gun 5 | 1 . 2 . . . 1 1 . . . . Ballistic Cannon 5 | . . . . . . . 1 1 . 1 2 Launcher 6 | . 3 1 . . 1 . . . . . 1 Special Weapon . | . . . . . . . . . . . . Impact Weapon 3 | . . 1 . . . . . . . . 2 Slashing Weapon . | . . . . . . . . . . . . Piercing Weapon 2 | . . . . . . . 1 . . . 1 Special Melee Weapon 2 | . . 1 . . . . 1 . . . . Unidentified Prototypes 2 | . . 1 . . . . . . . . 1 Corrupted Parts 1 | . . . . . . . . . . . 1 System Corruption 2 | . . . . . . . . . . . 2 Parts Lost 67 | . . 12 . . . 4 17 5 1 . 28 Power 12 | . . 1 . . . 1 3 . 1 . 6 Propulsion 21 | . . 7 . . . 2 7 2 . . 3 Utility 12 | . . . . . . 1 2 2 . . 7 Weapon 22 | . . 4 . . . . 5 1 . . 12 Highest Loss Streak 9 | . . 5 . . . 3 5 5 1 . 9 To Critical Strikes 2 | . . 1 . . . 1 . . . . . Average Slot Usage (%) 88 | . 99 76 100 100 100 98 95 74 83 84 68 Engine 7 | . 14 9 11 11 11 10 6 5 2 8 4 Core 5 | . . . . . . 7 7 7 12 2 . Treads 13 | . . 2 . . . 16 20 7 15 12 8 Leg 2 | . 28 18 . . . . . 1 . . . Flight 6 | . . 5 44 44 44 18 4 1 . . . Device 5 | . . . . . . 7 4 2 7 6 9 Storage 7 | . 14 11 11 11 11 9 7 1 5 6 5 Processor 5 | . . . . . . 1 7 6 7 6 5 Hackware 9 | . 13 11 11 11 11 9 7 7 7 13 9 Protection 1 | . . . . . . . 2 5 1 . . Energy Gun 4 | . 6 . . . . . 4 9 7 3 5 Energy Cannon 4 | . . . . . . . 10 1 . 2 2 Ballistic Gun 5 | . 6 4 22 22 21 16 4 . . . . Ballistic Cannon 3 | . . . . . . . . 2 7 13 5 Launcher 1 | . 14 6 . . . 1 . . . . . Piercing Weapon 2 | . . . . . . . . 7 7 6 4 Peak Build Rating 73 | 6 13 20 21 21 21 36 44 56 59 69 73 Average Rating 42 | 4 10 12 20 21 20 33 40 42 57 66 57 On Entrance 29 | . 6 13 20 21 21 20 31 40 56 58 68 Naked Turns . | . . . . . . . . . . . . Heaviest Build 58 | 13 35 35 33 33 33 48 58 52 36 55 56 Greatest Support 140 | 20 20 40 18 18 18 64 84 140 140 140 140 Greatest Overweight (x) 17 | 3 1 9 1 1 1 4 17 13 . . 7 Average Overweight (x) . | . . . 1 1 1 . 1 . . . . Largest Inventory Capacity 15 | 8 15 15 15 15 15 15 15 15 10 10 10 Average Capacity 12 | 7 11 15 15 15 15 15 15 6 8 10 9 Most Carried 15 | 6 13 12 9 10 10 14 15 10 10 10 10 Average Carried 10 | 4 8 8 8 9 10 9 12 5 7 9 8 Final Capacity 15 | 8 15 15 15 15 15 15 15 5 10 10 5 Final Carried 14 | 6 12 7 9 10 10 14 10 5 10 10 4 Class Distribution -------------------- 32% | Mutant 24% | Scavenger-Skirmisher 23% | Skirmisher 15% | Scavenger-Mutant 3% | Hacker-Skirmisher Dominant Class ---------------- Mutant | -10/Materials Mutant | -9/Materials Mutant | -9/Mines Mutant | -9/Exiles Mutant | -8/Mines Mutant | -8/Materials Skirmisher | -7/Factory Scavenger-Mutant | -7/Waste Scavenger-Mutant | -7/Factory Scavenger-Skirmisher | -6/Factory Scavenger-Skirmisher | -5/Factory Resources | -11 -10 -9 -9 -9 -8 -8 -7 -7 -7 -6 -5 ----------- Run | Yrd Mat Mat Min Exi Min Mat Fac Was Fac Fac Fac Matter Collected 3531 | 237 187 324 124 . . 384 536 326 224 465 724 Remotely . | . . . . . . . . . . . . Salvage Created 5659 | . 484 319 46 . . 332 1577 439 587 545 1330 Parts 286 | . 35 17 7 . . 28 86 1 36 32 44 Haulers Intercepted 2 | . 1 . . . . . 1 . . . . Recyclers Shooed 7 | . 3 . . . . . . . . 1 3 Parts Field Recycled . | . . . . . . . . . . . . Retrieved Matter . | . . . . . . . . . . . . Parts Self-Destructed . | . . . . . . . . . . . . Prevented . | . . . . . . . . . . . . Kills | -11 -10 -9 -9 -9 -8 -8 -7 -7 -7 -6 -5 ------- Run | Yrd Mat Mat Min Exi Min Mat Fac Was Fac Fac Fac Combat Hostiles Destroyed 106 | . 10 9 3 . . 9 26 2 15 9 23 Melee 10 | . . 3 . . . . . . . 2 5 Guns 33 | . 5 2 3 . . 7 6 . 5 . 5 Cannons 43 | . . . . . . . 19 2 9 6 7 AOE 13 | . 5 1 . . . 2 1 . 1 . 3 Classes Destroyed 17 | . 8 1 . . . . 6 1 1 . . Worker 9 | . 1 . . . . 2 . . 3 2 1 Builder 3 | . . . . . . . 1 . . . 2 Tunneler 2 | . 1 1 . . . . . . . . . Hauler 2 | . 1 . . . . . 1 . . . . Recycler 7 | . 2 1 . . . . 2 . . 1 1 Mechanic 1 | . . . . . . . . . . . 1 Operator 2 | . 1 1 . . . . . . . . . Watcher 13 | . 3 1 . . . 2 3 . 1 1 2 Swarmer 25 | . 6 4 3 . . 4 4 . 4 . . Cutter 3 | . . . . . . . 3 . . . . Grunt 30 | . 4 . . . . 3 2 . 5 . 16 Duelist 1 | . . . . . . . 1 . . . . Sentry 12 | . . 5 . . . 2 1 . 1 3 . Specialist 5 | . . . . . . . 5 . . . . Hunter 7 | . . . . . . . 1 . 3 2 1 Programmer 21 | . . . . . . . 9 . 2 4 6 Compactor 2 | . . . . . . . . 2 . . . Surgeon 1 | . . . . . . . . . 1 . . Best Kill Streak 7 | . 4 3 3 . . 5 4 1 5 6 7 Combat Bots Only 4 | . 3 2 3 . . 4 4 1 4 2 4 Max Kills in Single Turn 3 | . 3 1 1 . . 2 1 1 2 2 3 Gunslinging . | . . . . . . . . . . . . Exploded 2 | . 2 1 . . . 1 1 . 1 . 2 Melee 1 | . . 1 . . . . . . . 1 1 Uniques/NPCs Destroyed . | . . . . . . . . . . . . Combat | -11 -10 -9 -9 -9 -8 -8 -7 -7 -7 -6 -5 -------- Run | Yrd Mat Mat Min Exi Min Mat Fac Was Fac Fac Fac Hostile Shots Fired 947 | . 35 159 8 . 10 40 194 4 77 159 261 Missed 263 | . 9 46 . . 2 6 48 1 29 58 64 Damage Taken 10737 | . 339 1375 63 . 65 672 2353 145 678 1042 4005 Core 2200 | . 63 355 7 . 6 150 258 75 92 184 1010 Absorbed by Shields . | . . . . . . . . . . . . Regen/Repaired (Parts) 1280 | . . . . . . 21 212 6 164 877 . Core Remaining (%) 61 | 100 74 . . . 8 72 . . 39 78 . Volleys Fired 319 | . 28 15 4 . 1 28 79 12 51 31 70 Largest 3 | . 2 2 2 . 2 2 3 2 2 3 3 Hottest 207 | . 66 66 46 . 53 53 204 123 123 181 207 Shots Fired 705 | . 56 30 8 . 2 54 209 23 107 81 135 Gun 356 | . 42 16 8 . 1 48 92 19 55 12 63 Cannon 306 | . . . . . . . 117 4 52 69 64 Launcher 43 | . 14 14 . . 1 6 . . . . 8 Special . | . . . . . . . . . . . . Kinetic 294 | . 21 16 8 . 1 48 50 4 52 50 44 Thermal 264 | . 21 . . . . . 58 19 55 31 80 Explosive 43 | . 14 14 . . 1 6 . . . . 8 Electromagnetic 104 | . . . . . . . 101 . . . 3 Robot Hit Streak 18 | . 5 5 7 . . 8 18 5 5 6 8 Robot Miss Streak 6 | . 4 6 2 . . 3 5 3 6 6 4 Penetration Max 1 | . . . . . . . . . . . 1 Secondary Targets 1 | . 1 . . . . . . . . . . Max Gunslinging Chain 1 | . 1 . . . . . . . . . . Shots Hit Robots 458 | . 26 37 4 . . 35 130 14 55 51 106 Core Hits 236 | . 29 15 3 . 1 23 54 3 31 20 57 Critical Kills 7 | . . 1 . . . 1 1 1 2 1 . Critical Parts Destroyed 12 | . . 4 . . . 1 . . 3 1 3 Critical Strikes 30 | . . 5 . . . 2 4 2 7 4 6 Burn 5 | . . . . . . . . 1 2 1 1 Meltdown 1 | . . . . . . . . . . 1 . Destroy 11 | . . . . . . 2 1 1 5 1 1 Blast 3 | . . . . . . . 2 . . . 1 Corrupt 1 | . . . . . . . 1 . . . . Smash 7 | . . 5 . . . . . . . . 2 Impale 2 | . . . . . . . . . . 1 1 Melee Attacks 73 | . . 26 . . . . 3 . . 8 36 Impact 30 | . . 26 . . . . . . . . 4 Slashing . | . . . . . . . . . . . . Piercing 41 | . . . . . . . 1 . . 8 32 Sneak Attacks 4 | . . 1 . . . . 2 . . . 1 Combat Hostiles 1 | . . . . . . . 1 . . . . Follow-up Attacks . | . . . . . . . . . . . . Damage Inflicted 13253 | . 904 1118 61 . 21 694 2677 324 1779 1684 3991 Guns 3633 | . 294 174 61 . . 507 584 255 708 206 844 Cannons 5275 | . . . . . . . 1937 69 705 1267 1297 Explosions 2503 | . 610 246 . . 20 185 106 . 366 . 970 Melee 1807 | . . 666 . . . . 50 . . 211 880 Ramming 35 | . . 32 . . 1 2 . . . . . Kinetic 4034 | . 151 174 61 . . 507 743 69 705 774 850 Thermal 4648 | . 143 . . . . . 1053 255 859 699 1639 Explosive 1881 | . 610 246 . . 20 185 . . 215 . 605 Electromagnetic 848 | . . . . . . . 831 . . . 17 Impact 856 | . . 666 . . . . . . . . 190 Slashing . | . . . . . . . . . . . . Piercing 951 | . . . . . . . 50 . . 211 690 Highest Corruption 20 | . 3 . . . . 6 11 11 15 . 20 Average Corruption 6 | . 2 . . . . 5 5 11 11 . 6 Corruption Purged . | . . . . . . . . . . . . Corruption Blocked . | . . . . . . . . . . . . Effects 249 | . 9 . . . . 36 91 13 56 . 44 Message Errors 63 | . 2 . . . . 5 22 5 16 . 13 Matter Fused 55 | . 1 . . . . 10 23 4 8 . 9 Heat Flow Errors 28 | . 1 . . . . 8 10 2 2 . 5 Energy Discharges 32 | . 4 . . . . 3 12 . 9 . 4 Parts Rejected 3 | . . . . . . 1 1 . 1 . . Parts Fused 2 | . . . . . . 1 1 . . . . Data Loss (minor) 22 | . 1 . . . . 3 8 . 6 . 4 Data Loss (major) 17 | . . . . . . 3 3 2 5 . 4 Misfires 13 | . . . . . . . 5 . 6 . 2 Alerts 2 | . . . . . . . . . 1 . 1 Misdirections 1 | . . . . . . . . . 1 . . Weapon Failures 11 | . . . . . . 2 6 . 1 . 2 Overload Shots . | . . . . . . . . . . . . Overflow Damage 649 | . 1 111 . . . . 134 . 40 16 347 Projectiles 140 | . . . . . . . 80 . . 16 44 Explosions 254 | . 1 . . . . . 54 . 40 . 159 Melee 255 | . . 111 . . . . . . . . 144 Knockbacks 19 | . . . . . . . 6 . 4 3 6 Impact 1 | . . . . . . . . . . . 1 Kinetic 17 | . . . . . . . 5 . 4 3 5 Secondary 1 | . . . . . . . 1 . . . . Self-Inflicted Damage 529 | . 65 95 . . . 46 50 . 70 . 203 Shots 12 | . 3 2 . . . 2 1 . 1 . 3 Rammed 2 | . . . . . 1 1 . . . . . Targets Rammed 11 | . . 9 . . 1 1 . . . . . Kicked 9 | . . 9 . . . . . . . . . Crushed . | . . . . . . . . . . . . Highest Temperature 591 | . 119 18 . . . 230 591 302 169 108 313 Average Temperature 123 | . 50 11 . . . 68 173 130 32 28 102 Received Heat Transfer 1809 | . 114 288 . . . 126 198 9 141 72 861 Effects 30 | . . . . . . . 28 . . . 2 Shutdowns 8 | . . . . . . . 8 . . . . Energy Bleed 3 | . . . . . . . 3 . . . . Interference 10 | . . . . . . . 8 . . . 2 Matter Decay 2 | . . . . . . . 2 . . . . Short Circuit 4 | . . . . . . . 4 . . . . Damage (major) 2 | . . . . . . . 2 . . . . Damage (core) 1 | . . . . . . . 1 . . . . Siege Activations . | . . . . . . . . . . . . Robots Corrupted 7 | . . 4 . . . . 1 . . . 2 Combat Hostiles 5 | . . 3 . . . . . . . . 2 Parts Fried 9 | . . 3 . . . . 4 . . . 2 Impact Corruptions 10 | . . 6 . . . . . . . . 4 Robots Melted 2 | . . . . . . . . . . 1 1 Combat Hostiles 2 | . . . . . . . . . . 1 1 Parts Melted 17 | . . . . . . . 7 . 2 2 6 Heat Transferred 7622 | . 325 . . . . . 1800 629 1519 962 2387 Parts Sabotaged . | . . . . . . . . . . . . Parts Stolen . | . . . . . . . . . . . . Parts Stripped . | . . . . . . . . . . . . Power Chain Reactions 2 | . . . . . . . 2 . . . . Alert | -11 -10 -9 -9 -9 -8 -8 -7 -7 -7 -6 -5 ------- Run | Yrd Mat Mat Min Exi Min Mat Fac Was Fac Fac Fac Peak Influence 466 | . 333 384 166 . 7 121 466 159 347 169 447 Initial 169 | . . 140 96 . . 2 49 159 69 169 72 Average 146 | . 120 259 143 . . 40 203 112 163 76 138 Maximum Alert Level 2 | . 1 1 . . . . 2 . 1 . 2 Low Security (%) 73 | 100 75 21 100 . 100 100 59 100 56 100 76 Level 1 15 | . 24 78 . . . . 12 . 43 . 19 Level 2 10 | . . . . . . . 27 . . . 4 Level 3 . | . . . . . . . . . . . . Level 4 . | . . . . . . . . . . . . Level 5 . | . . . . . . . . . . . . High Security . | . . . . . . . . . . . . Max Security . | . . . . . . . . . . . . Squads Dispatched 28 | . 1 . . . . 1 14 . 4 3 5 Investigation 4 | . 1 . . . . 1 1 . 1 . . Extermination 15 | . . . . . . . 8 . 2 3 2 Reinforcement 8 | . . . . . . . 4 . 1 . 3 Assault 1 | . . . . . . . 1 . . . . Garrison . | . . . . . . . . . . . . Intercept . | . . . . . . . . . . . . Searches Triggered . | . . . . . . . . . . . . Construction Impeded 1 | . . . . . . . . . . . 1 Haulers Reinforced 1 | . . . . . . . . . . . 1 Active Scanning Responses . | . . . . . . . . . . . . Cargo Convoy Interrupts 1 | . . . . . . . 1 . . . . Stealth | -11 -10 -9 -9 -9 -8 -8 -7 -7 -7 -6 -5 --------- Run | Yrd Mat Mat Min Exi Min Mat Fac Was Fac Fac Fac Distress Signals 11 | . . 2 . . . 3 2 . 1 1 2 Communications Jammed . | . . . . . . . . . . . . Distress Signals . | . . . . . . . . . . . . Times Spotted 191 | . 16 18 3 . 3 25 45 10 19 15 37 Peak Tracking Total 7 | . 3 7 3 . 3 5 6 5 4 3 5 Tactical Retreats 8 | . 1 1 . . . . 3 1 . . 2 Traps | -11 -10 -9 -9 -9 -8 -8 -7 -7 -7 -6 -5 ------- Run | Yrd Mat Mat Min Exi Min Mat Fac Was Fac Fac Fac Traps Triggered 13 | . 4 . . . . . 3 . 1 . 5 Indirectly . | . . . . . . . . . . . . Trap Hack Attempts . | . . . . . . . . . . . . Triggered . | . . . . . . . . . . . . Disarmed . | . . . . . . . . . . . . Reprogrammed . | . . . . . . . . . . . . Reused . | . . . . . . . . . . . . Traps Extracted . | . . . . . . . . . . . . Installed . | . . . . . . . . . . . . Triggered 2 | . . . . . . . 2 . . . . Machines | -11 -10 -9 -9 -9 -8 -8 -7 -7 -7 -6 -5 ---------- Run | Yrd Mat Mat Min Exi Min Mat Fac Was Fac Fac Fac Machines Disabled 31 | . 3 2 . . . 1 4 . 12 4 5 Max in Single Turn 3 | . 2 1 . . . 1 1 . 3 1 2 Machines Repaired . | . . . . . . . . . . . . Machines Dismantled . | . . . . . . . . . . . . Machines Sabotaged . | . . . . . . . . . . . . Overloaded Fab Kills . | . . . . . . . . . . . . Hacking | -11 -10 -9 -9 -9 -8 -8 -7 -7 -7 -6 -5 --------- Run | Yrd Mat Mat Min Exi Min Mat Fac Was Fac Fac Fac Machines Accessed 33 | . 6 2 . 2 . 4 9 . 2 5 3 Terminals 19 | . 6 2 . . . 3 4 . . 2 2 Fabricators 3 | . . . . . . . 2 . . 1 . Repair Stations 5 | . . . . . . 1 2 . . 1 1 Recycling Units . | . . . . . . . . . . . . Scanalyzers 2 | . . . . . . . . . 1 1 . Garrison Access 2 | . . . . . . . 1 . 1 . . Total Hacks 74 | . 11 3 . 2 . 6 17 . 2 19 14 Successful 37 | . 7 2 . 2 . 4 8 . . 8 6 Failed 33 | . 4 1 . . . 2 9 . 2 11 4 Catastrophic 3 | . . . . . . . 1 . 1 1 . Database Lockouts 4 | . . . . . . . . . . . 4 Manual 1 | . . . . 1 . . . . . . . Terminals 42 | . 11 3 . . . 4 7 . . 4 13 Fabricators 4 | . . . . . . . 2 . . 2 . Repair Stations 20 | . . . . . . 2 6 . . 11 1 Recycling Units . | . . . . . . . . . . . . Scanalyzers 3 | . . . . . . . . . 1 2 . Garrison Access 3 | . . . . . . . 2 . 1 . . Terminal Hacks 21 | . 7 2 . 2 . 2 2 . . . 6 Record 10 | . 2 1 . 1 . 1 . . . . 5 Prototype ID Bank 2 | . 2 . . . . . . . . . . Branch Access Points 1 | . . 1 . . . . . . . . . Emergency Access Points 1 | . . . . . . . 1 . . . . Alert Level 2 | . . . . . . . 1 . . . 1 Locate Traps 2 | . 2 . . . . . . . . . . Hauler Manifests 1 | . 1 . . . . . . . . . . Registered Prototypes 1 | . . . . . . 1 . . . . . Derelict Proto ID Bank 1 | . . . . 1 . . . . . . . Fabricator Hacks 3 | . . . . . . . 2 . . 1 . Network Status 1 | . . . . . . . 1 . . . . Build 2 | . . . . . . . 1 . . 1 . Repair Station Hacks 11 | . . . . . . 2 3 . . 6 . Scan Component 6 | . . . . . . 1 2 . . 3 . Repair 5 | . . . . . . 1 1 . . 3 . Recycling Unit Hacks . | . . . . . . . . . . . . Scanalyzer 1 | . . . . . . . . . . 1 . Insert Component 1 | . . . . . . . . . . 1 . Garrison Access Hacks 1 | . . . . . . . 1 . . . . Coupler Status 1 | . . . . . . . 1 . . . . Unauthorized Hacks . | . . . . . . . . . . . . Terminals . | . . . . . . . . . . . . Fabricators . | . . . . . . . . . . . . Repair Stations . | . . . . . . . . . . . . Recycling Units . | . . . . . . . . . . . . Scanalyzers . | . . . . . . . . . . . . Garrison Access . | . . . . . . . . . . . . Data Cores Recovered 2 | . 1 1 . . . . . . . . . Used 1 | . 1 . . . . . . . . . . Hacking Detections 25 | . 4 2 . . . 3 6 . 2 5 3 Full Trace Events 1 | . . . . . . 1 . . . . . Feedback Events 1 | . . . . . . 1 . . . . . Corruption 1 | . . . . . . 1 . . . . . Feedback Blocked . | . . . . . . . . . . . . Robot Schematics Acquired . | . . . . . . . . . . . . Robots Built 3 | . . . . . . . . . . 3 . Authchips . | . . . . . . . . . . . . Time 134 | . . . . . . . . . . 134 . Total Robot Build Rating 12 | . . . . . . . . . . 12 . Part Schematics Acquired . | . . . . . . . . . . . . Parts Built 2 | . . . . . . . 2 . . . . Authchips . | . . . . . . . . . . . . Time 42 | . . . . . . . 42 . . . . Total Part Build Rating 8 | . . . . . . . 8 . . . . Parts Repaired 5 | . . . . . . 1 1 . . 3 . Time 226 | . . . . . . 38 26 . . 162 . Parts Recycled . | . . . . . . . . . . . . Recycled Matter . | . . . . . . . . . . . . Retrieved Matter . | . . . . . . . . . . . . Retrieved Components . | . . . . . . . . . . . . Parts Scanalyzed 1 | . . . . . . . . . . 1 . Part Schematics Acquired . | . . . . . . . . . . . . Parts Damaged . | . . . . . . . . . . . . Bothacking | -11 -10 -9 -9 -9 -8 -8 -7 -7 -7 -6 -5 ------------ Run | Yrd Mat Mat Min Exi Min Mat Fac Was Fac Fac Fac Used RIF Installer . | . . . . . . . . . . . . Robots Hacked 1 | . . . . . . . 1 . . . . Non-combat . | . . . . . . . . . . . . Combat 1 | . . . . . . . 1 . . . . Robot Hacks Applied 1 | . . . . . . . 1 . . . . parse_system 1 | . . . . . . . 1 . . . . Relay Couplers Released 3 | . . . . . . . . . . 3 . Programmers 3 | . . . . . . . . . . 3 . Fabnet Peak Effective % . | . . . . . . . . . . . . Robots Rewired . | . . . . . . . . . . . . Allies Hacked 1 | . . . . . . . . . 1 . . Hacks Repelled . | . . . . . . . . . . . . Allies | -11 -10 -9 -9 -9 -8 -8 -7 -7 -7 -6 -5 -------- Run | Yrd Mat Mat Min Exi Min Mat Fac Was Fac Fac Fac Total Allies 22 | . . . . . . . . 19 . 3 . Largest Group 18 | . . . . . . . . 18 3 3 . Highest-Rated Group 434 | . . . . . . . . 434 83 60 . Highest-Rated Ally 35 | . . . . . . . . 35 30 25 . Total Orders . | . . . . . . . . . . . . Ally Attacks 222 | . . . . . . . . 200 11 11 . Total Damage 6370 | . . . . . . . . 6037 93 240 . Kills 19 | . . . . . . . . 17 . 2 . Allies Corrupted . | . . . . . . . . . . . . Allies Melted . | . . . . . . . . . . . . Intel | -11 -10 -9 -9 -9 -8 -8 -7 -7 -7 -6 -5 ------- Run | Yrd Mat Mat Min Exi Min Mat Fac Was Fac Fac Fac Robot Analysis Total . | . . . . . . . . . . . . Derelict Logs Recovered 1 | . . . 1 . . . . . . . . Drone Launches . | . . . . . . . . . . . . Drone Recoveries . | . . . . . . . . . . . . Exploration | -11 -10 -9 -9 -9 -8 -8 -7 -7 -7 -6 -5 ------------- Run | Yrd Mat Mat Min Exi Min Mat Fac Was Fac Fac Fac Turns Passed 14759 | 94 781 587 436 253 273 1490 5229 308 1458 1884 1966 Spaces Moved 6093 | 66 436 231 375 238 232 496 1768 187 761 726 577 Core 99 | 16 . 8 . . . . 8 46 . . 21 Treads 3663 | . . 23 . . . 341 1286 79 761 726 447 Legs 1012 | 50 436 156 . . . . 270 21 . . 79 Wheels . | . . . . . . . . . . . . Hover 196 | . . . . . . . 125 41 . . 30 Flight 1123 | . . 44 375 238 232 155 79 . . . . Fastest Speed 50 | 50 120 106 106 106 106 150 150 50 160 160 120 Average Speed 164 | 115 151 170 106 106 106 181 197 133 160 160 165 Slowest Speed 1120 | 200 190 520 106 106 106 317 1120 700 160 160 400 Overloaded Moves . | . . . . . . . . . . . . Propulsion Burnouts . | . . . . . . . . . . . . Robots Hopped . | . . . . . . . . . . . . Cave-ins Triggered 1 | . . . . . . 1 . . . . . Exploration Rate (%) 43 | 4 84 29 79 63 47 38 45 77 22 23 11 Regions Visited 11 Branch Regions 3 Pre-discovered Areas . | . . . . . . . . . . . . Known Exits Taken 1 | . . 1 . . . . . . . . . Unknown Exits Taken 8 | 1 1 . 1 1 1 1 . . 1 1 . Scrap Searched 2 | . . . 2 . . . . . . . . Spaces Dug . | . . . . . . . . . . . . Terrain Destroyed 416 | . 128 48 . . 7 31 4 2 76 12 108 Melee . | . . . . . . . . . . . . Projectile 35 | . . . . . . . 2 2 11 12 8 AOE 381 | . 128 48 . . 7 31 2 . 65 . 100 Terrain Rammed . | . . . . . . . . . . . . Walls Destroyed . | . . . . . . . . . . . . Machines Disabled . | . . . . . . . . . . . . Actions | -11 -10 -9 -9 -9 -8 -8 -7 -7 -7 -6 -5 --------- Run | Yrd Mat Mat Min Exi Min Mat Fac Was Fac Fac Fac Total 10109 | 83 505 346 405 238 256 1028 3342 222 900 1373 1411 Wait 3334 | . 11 40 25 . 22 479 1406 7 74 592 678 Move 6083 | 65 435 230 374 237 231 495 1768 186 760 725 577 Hop . | . . . . . . . . . . . . Pick Up 113 | 12 14 9 2 1 . 12 33 2 8 2 18 Fast Attach 21 | . . . . . . . 1 5 1 6 8 Attach 83 | 6 2 14 . . . 8 24 2 1 2 24 Detach . | . . . . . . . . . . . . Swap 34 | . 6 3 . . 1 5 12 3 2 2 . Drop 38 | . 9 . . . . . 16 5 3 5 . Fire 319 | . 28 15 4 . 1 28 79 12 51 31 70 Melee 73 | . . 26 . . . . 3 . . 8 36 Ram 2 | . . . . . 1 1 . . . . . Kick 9 | . . 9 . . . . . . . . . Crush . | . . . . . . . . . . . . Escape Stasis . | . . . . . . . . . . . . Rewire . | . . . . . . . . . . . . Trap . | . . . . . . . . . . . . Miscellaneous . | . . . . . . . . . . . . Route ------- -11/Scrapyard -10/Materials (discovered 4 exits: *Mat x3 / [*Min]) -9/Materials (discovered 2 exits: *Min x2) -9/Mines (discovered 2 exits: *Mat / *Exi) -9/Exiles (discovered 2 exits: [*Min x2]) -8/Mines -8/Materials (discovered 2 exits: *Fac x2) -7/Factory -7/Waste -7/Factory -6/Factory -5/Factory History --------- Turn | Location | Event 5 | -11/Scrapyard | Discovered new exit (range 16) 95 | -11/Scrapyard | Entered Materials 233 | -10/Materials | Discovered new exit (range 7) 315 | -10/Materials | Build established: Mutant 357 | -10/Materials | Discovered new exit (range 7) 542 | -10/Materials | Discovered new exit (range 16) 835 | -10/Materials | Discovered new exit (range 7) 876 | -10/Materials | Entered another Materials area 876 | -9/Materials | Evolved 2 slots: Propulsion x2 1084 | -9/Materials | Lost 4 parts (3n1w) 1096 | -9/Materials | Identified exit to Mines 1234 | -9/Materials | Lost 3 parts (2n1w) 1259 | -9/Materials | Core integrity fell below 50% 1343 | -9/Materials | Core integrity fell below 20% 1372 | -9/Materials | Lost 5 parts (1p2n2w) 1463 | -9/Materials | Entered Mines 1478 | -9/Mines | YI-UF0 nonchalantly dropped a Grenade Launcher on the ground 1601 | -9/Mines | Learned Materials trap positions 1895 | -9/Mines | Deemed a non-threat by the Exiles lab entrance 1895 | -9/Mines | Discovered new exit (range 5) 1899 | -9/Mines | Discovered new exit (range 5) 1899 | -9/Mines | Entered Exiles 1916 | -9/Exiles | Discovered new exit (range 15) 1928 | -9/Exiles | Met 8R-AWN 1946 | -9/Exiles | Met EX-HEX 1981 | -9/Exiles | Met EX-BIN 1996 | -9/Exiles | Aligned with FarCom system 1997 | -9/Exiles | Given EX-Vault access code 2034 | -9/Exiles | Opened EX-Vault 2042 | -9/Exiles | Found Cloak of Protection 2073 | -9/Exiles | Warned to stay clear of 0b10 Research branches 2103 | -9/Exiles | Met EX-DEC 2142 | -9/Exiles | Discovered new exit (range 11) 2152 | -9/Exiles | Left Exiles lab with Cloak of Protection 2152 | -9/Exiles | Entered Mines 2417 | -8/Mines | Discovered new exit (range 6) 2425 | -8/Mines | Entered Materials 2425 | -8/Materials | Evolved 2 slots: Power x1, Utility x1 2426 | -8/Materials | Loaded intel: 19 trap records 2634 | -8/Materials | Crushed by falling debris 2670 | -8/Materials | Lost 3 parts (1p2n) 2864 | -8/Materials | Discovered new exit (range 16) 3233 | -8/Materials | Repaired Lgt. Nuclear Core 3892 | -8/Materials | Discovered new exit (range 16) 3915 | -8/Materials | Entered Factory 3915 | -7/Factory | Evolved 2 slots: Utility x1, Weapon x1 4212 | -7/Factory | Build established: Scavenger-Skirmisher 4559 | -7/Factory | Build established: Skirmisher 4761 | -7/Factory | Fabricated Imp. EM Pulse Cannon (x2) 4938 | -7/Factory | Cargo convoy interrupted 5055 | -7/Factory | Build established: Scavenger-Skirmisher 5526 | -7/Factory | Build established: Skirmisher 6408 | -7/Factory | Lost 3 parts (3w) 7375 | -7/Factory | Repaired Broken Arm. Treads 7512 | -7/Factory | Lost 4 parts (1p2n1u) 8289 | -7/Factory | Lost 5 parts (1p2n2w) 8529 | -7/Factory | Build established: Mutant 9041 | -7/Factory | System corruption reached 10% 9115 | -7/Factory | First assault squad dispatched 9144 | -7/Factory | Sucked down chute 9144 | -7/Factory | Entered Waste 9145 | -7/Waste | Met a frightened Derelict 9164 | -7/Waste | Spotted C-40 Crusher 9165 | -7/Waste | Spotted C-40 Crusher 9181 | -7/Waste | Spotted C-40 Crusher 9188 | -7/Waste | Spotted C-40 Crusher 9198 | -7/Waste | Crushed by Compactor (1 part destroyed, 1 dropped) 9203 | -7/Waste | Crushed by Compactor (1 part destroyed, 1 dropped) 9204 | -7/Waste | Spotted C-40 Crusher 9204 | -7/Waste | Crushed by Compactor (1 part destroyed, 2 dropped) 9220 | -7/Waste | Warlord forces began an assault 9235 | -7/Waste | Lost 5 parts (2n2u1w) 9282 | -7/Waste | Allies destroyed C-40 Crusher 9291 | -7/Waste | Allies destroyed C-40 Crusher 9294 | -7/Waste | Spotted C-40 Crusher 9305 | -7/Waste | Allies destroyed C-40 Crusher 9331 | -7/Waste | Allies destroyed C-40 Crusher 9339 | -7/Waste | Destroyed C-40 Crusher 9369 | -7/Waste | Lost 12 allies 9374 | -7/Waste | Destroyed C-40 Crusher 9428 | -7/Waste | Discovered new exit (range 16) 9452 | -7/Waste | Entered Factory 9452 | -7/Factory | Accompanied by 3 allies 9587 | -7/Factory | Build established: Scavenger-Mutant 10320 | -7/Factory | Core integrity fell below 50% 10871 | -7/Factory | Discovered new exit (range 13) 10910 | -7/Factory | Entered another Factory area 10910 | -6/Factory | Accompanied by 1 ally 10910 | -6/Factory | Evolved 2 slots: Utility x1, Weapon x1 11370 | -6/Factory | Build established: Hacker-Skirmisher 11761 | -6/Factory | Fabricated B-48 Gladiator (x3) 11819 | -6/Factory | Build established: Scavenger-Skirmisher 12175 | -6/Factory | Repaired Hvy. Treads 12233 | -6/Factory | Repaired Hvy. Treads 12284 | -6/Factory | Repaired Lgt. Angular Momentum Engine 12525 | -6/Factory | P-70 Sage assimilated allied Gladiator 5a 12733 | -6/Factory | Discovered new exit (range 14) 12794 | -6/Factory | Entered another Factory area 12794 | -5/Factory | Evolved 2 slots: Power x1, Utility x1 12816 | -5/Factory | Central database locked down 12816 | -5/Factory | Central database locked down 12816 | -5/Factory | Central database locked down 12816 | -5/Factory | Central database locked down 12914 | -5/Factory | Lost 3 parts (2p1w) 14330 | -5/Factory | System corruption reached 10% 14361 | -5/Factory | Core integrity fell below 50% 14380 | -5/Factory | Lost 8 parts (1p1n3u3w) 14497 | -5/Factory | Lost 9 parts (2p1n3u3w) 14575 | -5/Factory | Core integrity fell below 20% 14637 | -5/Factory | Lost 3 parts (1p1u1w) 14760 | -5/Factory | Destroyed by Y-64 Sentinel with Wave Gun Last Messages --------------- 14622_ System corrupted: Matter fused (-6). 14625_ Acquired Unknown Device. 14628_ Identified Imp. Component Analysis Suite. 14631_ Acquired Unknown Device. 14648_ K-01 Serf collects debris. 14652_ System corrupted: Component data lost. 14668_ System corrupted: Heat flow error (+228). 14683_ System corrupted: Matter fused (-5). 14689_ ALERT: Cargo convoy en route, clear transfer corridor. 14700_ System corrupted: Component data lost. 14709_ Imp. Component Analysis Suite identified Imp. Kinecellerator. 14715_ System corrupted: Component data lost. 14732_ K&6A=KDEQ